Cogmind - Beta 10.1 @@@ ROGUE MODE // 2020.09.22 @ 18:04:20 Player: CrossedViper Result: Destroyed by G-34 Mercenary with Small Laser Performance ------------- Evolutions (1) 500 Regions Visited (2) 400 Robots Destroyed (13) 65 Value Destroyed (269) 269 Prototype IDs (2) 40 Alien Tech Used (0) 0 Bonus (0) 0 TOTAL SCORE: 1274 Bonus ------- None Cogmind --------- Core Integrity 0/400 Matter 81/300 Energy 98/100 System Corruption 0% Temperature Cool (6) Movement Core (50) Location -9/Materials Parts ------- > --- POWER (1) -------- (None) > --- PROPULSION (2) --- (None) > --- UTILITY (2) ------ (None) > --- WEAPON (4) ------- Katana > --- INVENTORY (4) ---- Large Storage Unit Large Storage Unit Katana Katana Peak State ------------ > --- POWER ------------ Ion Engine > --- PROPULSION ------- Light Treads Light Treads > --- UTILITY ---------- Large Storage Unit Large Storage Unit > --- WEAPON ----------- Small Laser Particle Gun Light Assault Rifle > --- INVENTORY -------- Wheel Wheel [Rating: 9] Favorites ----------- Power Ion Engine Engine Ion Engine Propulsion Aluminum Leg Treads Light Treads Leg Aluminum Leg Utility Large Storage Unit Storage Large Storage Unit Weapon Assault Rifle Energy Gun Small Laser Ballistic Gun Assault Rifle Slashing Weapon Katana Build | -11 -10 -9 ------- Run | Scr Mat Mat Slots Evolved 2 | . . 2 Power . | . . . Propulsion . | . . . Utility . | . . . Weapon 2 | . . 2 Parts Attached 9 | . 6 3 Power 1 | . 1 . Engine 1 | . 1 . Core . | . . . Reactor . | . . . Propulsion 2 | . 2 . Treads 2 | . 2 . Leg . | . . . Wheel . | . . . Hover . | . . . Flight . | . . . Utility 2 | . 2 . Device . | . . . Storage 2 | . 2 . Processor . | . . . Hackware . | . . . Protection . | . . . Artifact . | . . . Weapon 4 | . 1 3 Energy Gun 2 | . . 2 Energy Cannon . | . . . Ballistic Gun 1 | . 1 . Ballistic Cannon . | . . . Launcher . | . . . Special Weapon . | . . . Impact Weapon . | . . . Slashing Weapon 1 | . . 1 Piercing Weapon . | . . . Special Melee Weapon . | . . . Unidentified Prototypes . | . . . Parts Lost 9 | . 5 4 Power 2 | . 1 1 Propulsion 4 | . 2 2 Utility . | . . . Weapon 3 | . 2 1 Highest Loss Streak 5 | . 5 2 Average Slot Usage (%) 82 | . 97 46 Engine 10 | . 13 3 Treads 7 | . 3 16 Leg 17 | . 24 . Storage 22 | . 28 8 Energy Gun 2 | . . 7 Ballistic Gun 20 | . 26 4 Slashing Weapon 1 | . . 6 Naked Turns . | . . . Heaviest Build 42 | 13 41 42 Greatest Support 40 | 20 40 40 Greatest Overweight (x) 2 | . 2 1 Average Overweight (x) . | . 1 . Largest Inventory Capacity 16 | . 16 16 Average Capacity 13 | . 15 8 Most Carried 7 | . 7 4 Average Carried 5 | . 6 3 Final Capacity 16 | 6 16 4 Final Carried 6 | 6 4 4 Class Distribution -------------------- 90% | Mutant 9% | Gunner Dominant Class ---------------- Mutant | -10/Materials Mutant | -9/Materials Resources | -11 -10 -9 ----------- Run | Scr Mat Mat Matter Collected 274 | 200 74 . Remotely . | . . . Salvage Created 298 | . 298 . Parts 28 | . 28 . Haulers Intercepted . | . . . Recyclers Shooed . | . . . Parts Field Recycled . | . . . Retrieved Matter . | . . . Parts Self-Destructed . | . . . Prevented . | . . . Kills | -11 -10 -9 ------- Run | Scr Mat Mat Combat Hostiles Destroyed 13 | . 13 . Guns 13 | . 13 . Classes Destroyed 2 | . 2 . Swarmer 9 | . 9 . Grunt 4 | . 4 . Best Kill Streak 3 | . 3 . Combat Bots Only 3 | . 3 . Max Kills in Single Turn 1 | . 1 . Gunslinging . | . . . Exploded . | . . . Melee . | . . . Uniques/NPCs Destroyed . | . . . Combat | -11 -10 -9 -------- Run | Scr Mat Mat Damage Taken 1751 | . 964 787 Core 648 | . 240 408 Absorbed by Shields . | . . . Core Remaining (%) 52 | 100 4 . Volleys Fired 55 | . 51 4 Largest 3 | . 2 3 Hottest 125 | . 40 125 Shots Fired 100 | . 88 12 Gun 100 | . 88 12 Cannon . | . . . Launcher . | . . . Special . | . . . Kinetic 92 | . 88 4 Thermal 8 | . . 8 Explosive . | . . . Electromagnetic . | . . . Robot Hit Streak 10 | . 8 10 Robot Miss Streak 5 | . 5 1 Penetration Max . | . . . Secondary Targets 1 | . 1 . Max Gunslinging Chain 1 | . 1 . Shots Hit Robots 64 | . 52 12 Core Hits 20 | . 19 1 Critical Hits 1 | . . 1 Critical Kills . | . . . Critical Parts Destroyed 1 | . . 1 Melee Attacks 11 | . . 11 Impact . | . . . Slashing 11 | . . 11 Piercing . | . . . Sneak Attacks 1 | . . 1 Combat Hostiles . | . . . Follow-up Attacks . | . . . Damage Inflicted 821 | . 619 202 Guns 723 | . 619 104 Cannons . | . . . Explosions . | . . . Melee 98 | . . 98 Ramming . | . . . Kinetic 642 | . 619 23 Thermal 81 | . . 81 Explosive . | . . . Electromagnetic . | . . . Impact . | . . . Slashing 98 | . . 98 Piercing . | . . . Highest Corruption 3 | . 3 . Average Corruption 2 | . 2 . Corruption Purged . | . . . Effects 5 | . 5 . Message Errors 1 | . 1 . Matter Fused 2 | . 2 . Heat Flow Errors 1 | . 1 . Targeting Errors 1 | . 1 . Overload Shots . | . . . Overflow Damage . | . . . Projectiles . | . . . Explosions . | . . . Melee . | . . . Knockbacks . | . . . Impact . | . . . Kinetic . | . . . Secondary . | . . . Self-Inflicted Damage . | . . . Shots . | . . . Rammed . | . . . Targets Rammed . | . . . Kicked . | . . . Crushed . | . . . Highest Temperature 275 | . 269 275 Average Temperature 98 | . 78 142 Received Heat Transfer 657 | . 324 333 Siege Activations . | . . . Robots Corrupted . | . . . Combat Hostiles . | . . . Parts Fried . | . . . Impact Corruptions . | . . . Robots Melted . | . . . Combat Hostiles . | . . . Parts Melted . | . . . Heat Transferred 186 | . . 186 Parts Sabotaged . | . . . Parts Stolen . | . . . Parts Stripped . | . . . Power Chain Reactions . | . . . Missiles Intercepted . | . . . Alert | -11 -10 -9 ------- Run | Scr Mat Mat Peak Influence 260 | . 260 94 Initial 54 | . . 54 Average 104 | . 117 70 Maximum Alert Level 1 | . 1 . Low Security (%) 82 | . 76 100 Level 1 17 | . 23 . Level 2 . | . . . Level 3 . | . . . Level 4 . | . . . Level 5 . | . . . High Security . | . . . Max Security . | . . . Squads Dispatched 3 | . 2 1 Investigation 1 | . 1 . Extermination . | . . . Reinforcement 2 | . 1 1 Assault . | . . . Garrison . | . . . Intercept . | . . . Construction Impeded . | . . . Haulers Reinforced . | . . . Stealth | -11 -10 -9 --------- Run | Scr Mat Mat Distress Signals 2 | . 2 . Communications Jammed . | . . . Distress Signals . | . . . Times Spotted 39 | . 17 22 Peak Tracking Total 13 | . 3 13 Tactical Retreats 5 | . 1 4 Traps | -11 -10 -9 ------- Run | Scr Mat Mat Traps Triggered 2 | . 2 . Indirectly . | . . . Trap Hack Attempts . | . . . Triggered . | . . . Disarmed . | . . . Reprogrammed . | . . . Reused . | . . . Traps Extracted . | . . . Installed . | . . . Triggered . | . . . Machines | -11 -10 -9 ---------- Run | Scr Mat Mat Machines Disabled 3 | . 3 . Max in Single Turn 1 | . 1 . Machines Sabotaged . | . . . Garrisons Compromised . | . . . Overloaded Fab Kills . | . . . Fab Network Shutdowns . | . . . Hacking | -11 -10 -9 --------- Run | Scr Mat Mat Machines Accessed 2 | . 1 1 Terminals 2 | . 1 1 Fabricators . | . . . Repair Stations . | . . . Recycling Units . | . . . Scanalyzers . | . . . Garrison Access . | . . . Total Hacks 8 | . 4 4 Successful 2 | . . 2 Failed 6 | . 4 2 Catastrophic 1 | . 1 . Database Lockouts . | . . . Manual 5 | . 4 1 Terminals 8 | . 4 4 Fabricators . | . . . Repair Stations . | . . . Recycling Units . | . . . Scanalyzers . | . . . Garrison Access . | . . . Terminal Hacks 2 | . . 2 Prototype ID Bank 1 | . . 1 Alert Level 1 | . . 1 Fabricator Hacks . | . . . Repair Station Hacks . | . . . Recycling Unit Hacks . | . . . Scanalyzer . | . . . Garrison Access Hacks . | . . . Unauthorized Hacks . | . . . Terminals . | . . . Fabricators . | . . . Repair Stations . | . . . Recycling Units . | . . . Scanalyzers . | . . . Garrison Access . | . . . Data Cores Recovered . | . . . Used . | . . . Hacking Detections 2 | . 1 1 Full Trace Events 1 | . 1 . Feedback Events . | . . . Feedback Blocked . | . . . Robot Schematics Acquired . | . . . Robots Built . | . . . Matter . | . . . Time . | . . . Total Robot Build Rating . | . . . Part Schematics Acquired . | . . . Parts Built . | . . . Matter . | . . . Time . | . . . Total Part Build Rating . | . . . Parts Repaired . | . . . Time . | . . . Parts Recycled . | . . . Recycled Matter . | . . . Retrieved Matter . | . . . Retrieved Components . | . . . Parts Scanalyzed . | . . . Part Schematics Acquired . | . . . Parts Damaged . | . . . Bothacking | -11 -10 -9 ------------ Run | Scr Mat Mat Used RIF Installer . | . . . Robots Hacked . | . . . Non-combat . | . . . Combat . | . . . Robot Hacks Applied . | . . . Relay Couplers Released . | . . . Robots Rewired . | . . . Allies Hacked . | . . . Hacks Repelled . | . . . Allies | -11 -10 -9 -------- Run | Scr Mat Mat Total Allies . | . . . Largest Group . | . . . Highest-Rated Group . | . . . Highest-Rated Ally . | . . . Total Orders . | . . . Ally Attacks . | . . . Total Damage . | . . . Kills . | . . . Allies Corrupted . | . . . Allies Melted . | . . . Intel | -11 -10 -9 ------- Run | Scr Mat Mat Robot Analysis Total . | . . . Derelict Logs Recovered . | . . . Drone Launches . | . . . Drone Recoveries . | . . . Exploration | -11 -10 -9 ------------- Run | Scr Mat Mat Turns Passed 771 | . 558 213 Spaces Moved 470 | 1 231 238 Core 206 | . . 206 Treads 60 | . 28 32 Legs 204 | 1 203 . Wheels . | . . . Hover . | . . . Flight . | . . . Fastest Speed 50 | 120 120 50 Average Speed 120 | 120 176 67 Slowest Speed 180 | 120 180 180 Overloaded Moves . | . . . Propulsion Burnouts . | . . . Robots Hopped . | . . . Cave-ins Triggered . | . . . Exploration Rate (%) 24 | 2 43 29 Regions Visited 2 Branch Regions . Pre-discovered Areas . | . . . Known Exits Taken . | . . . Unknown Exits Taken 2 | 1 1 . Scrap Searched . | . . . Spaces Dug 10 | . . 10 Terrain Destroyed 10 | . . 10 Melee 10 | . . 10 Projectile . | . . . AOE . | . . . Terrain Rammed . | . . . Walls Destroyed . | . . . Machines Disabled . | . . . Actions | -11 -10 -9 --------- Run | Scr Mat Mat Total 567 | . 298 269 Wait 10 | . 7 3 Move 468 | . 230 238 Hop . | . . . Pick Up 6 | . 3 3 Fast Attach 2 | . 1 1 Attach 6 | . 4 2 Detach 2 | . . 2 Swap 1 | . 1 . Drop 6 | . 1 5 Fire 55 | . 51 4 Melee 11 | . . 11 Ram . | . . . Kick . | . . . Crush . | . . . Escape Stasis . | . . . Rewire . | . . . Trap . | . . . Miscellaneous . | . . . Route ------- -11/Scrapyard -10/Materials -9/Materials (discovered 1 exit: [*Mat]) History --------- Turn | Location | Event 1 | -11/Scrapyard | Discovered new exit (range 0) 1 | -11/Scrapyard | Entered Materials 287 | -10/Materials | Discovered new exit (range 13) 300 | -10/Materials | Build established: Mutant 443 | -10/Materials | Core integrity fell below 50% 497 | -10/Materials | Core integrity fell below 20% 519 | -10/Materials | Lost 5 parts (1p2n2w) 559 | -10/Materials | Entered another Materials area 559 | -9/Materials | Evolved 2 slots: Weapon x2 685 | -9/Materials | Discovered new exit (range 15) 758 | -9/Materials | Core integrity fell below 50% 766 | -9/Materials | Core integrity fell below 20% 772 | -9/Materials | Destroyed by G-34 Mercenary with Small Laser Last Messages --------------- 00649_ Acquired Katana. 00651_ Dropped Lrg. Storage Unit. 00651_ Dropped Wheel. 00652_ Acquired Lrg. Storage Unit. 00654_ Acquired Katana. 00668_ K-01 Serf collects debris. 00672_ U-05 Engineer builds a Wall. 00674_ K-01 Serf collects debris. 00676_ U-05 Engineer builds a Wall. 00679_ K-01 Serf collects debris. 00683_ U-05 Engineer builds a Wall. 00684_ K-01 Serf collects debris. 00685_ EXIT=FOUND 00688_ K-01 Serf collects debris. 00712_ Lgt. Treads destroyed. 00749_ U-05 Engineer builds a Wall. 00756_ Sneak attack on U-05 Engineer. 00756_ U-05 Engineer suffers critical hit. 00756_ Destroyed Wheel. 00758_ U-05 Engineer builds a Wall. Map ----- +----------------------------------------------------+ | ?????????????????????????????????????????????????? | | ?????????????????????????????????????????????????? | | ?????????????????????????????????????????????????? | | ?????????????????????????????????????????????????? | | ?????????????????????????????????????????????????? | | ?????????????????????????????????????????????????? | | ?????????????????????????????????????????????????? | | ?????????????????????????????????????????????????? | | ?????????????????????????????????????????????????? | | ?????????????????????????????????????????????????? | | ?????????????????????????????????????????????????? | | ?????????????????????????????????????????????????? | | ?????????????????????????????????????????????????? | | ?????????????????????????????????????????????????? | | ?????????????????????????????????????????????????? | | ??????????????????????????????????????########???? | | ??????????????????????????????????????# #???? | | ??????????????????????????????????????# #???? | | ??????????????????????????????????????# #???? | | ??????????????????????????????????????# ##### | | ?????????????????????????????????????## + + | | ????????????# ??????????????????????##" # # | | ?????????????# a####################;####+### # | | ?????????????# g lg # | | ?????????????# a / | | ?????????????# @ # | | ?????????????# ############################# # | | ??????????????????????????????????########???# # | | ??????????????????????????????????# #???# # | | ??????????????????????????????????# #???# # | | ??????????????????????????????????# """ #???# | | ??????????????????????????????????# """ #???# | | ??????????????????????????????????# """ #???# | | ????????????????????????????####### ##??# | | ????????????????????????????# ###+######## | | ????????????????????????????#! | | ????????????????????????????# | | ????????????????????????????# | | ????????????????????????????# # ###+##### | | ???????????????############### ## # | | ???????????????# # ##/ **!!# | | ???????????????# # ## **!!#/ """ | | ???????????????# / ######### """ | | ???????????????# # #???????# " " """ | | ???????????????# # #???????# "T" """ | | ???????????????# ?# #???????# """ """ | | ???????????????#############?# #???????# | | ?????????????????????????????# #???????######### | | ?????????????????????????????# #???????????????? | | ?????????????????????????????# #???????????????? | +----------------------------------------------------+ Best States ------------- Heat Dissipation 28 Energy Generation 10 Energy Capacity 250 Matter Stores 290 Matter Capacity 300 Sight Range 16 Terrain Scan Density 10 Evasion (%) 50 Recoil Reduction 2 Item Schematics ----------------- None Robot Schematics ------------------ None Fabricated ------------ Nothing Alien Tech Used ----------------- None Achievements -------------- None Challenges ------------ None Game ------ Seed NetworkElectronFilter Manual? 0 Play Time 00:07:10 Cumulative 75.5 hours Start 2020.09.22 @ 17:59:27 End 2020.09.22 @ 18:04:20 Sessions 1 Manual Loads 0 Difficulty Rogue Special Mode None Game No. 72 Rogue 71 Adventurer 0 Explorer 1 Win Type - Total 0 Types 0/0/0/0/0/0/0/0/0 Lore% 48 Gallery% 77 Achievement% 57 Wizard Run 0 Options --------- ASCII 0 Keyboard 0 Movement Numpad Keybinds 0 Fullscreen 1 Font 18/SmallcapsGlow Map View 76x50 Tactical HUD 1 Map Filters NONE Filters NONE Steam 1 RUN: 101407da-7d66-4cb5-9a9e-2c9349ae98bc